fUSD/lending_fUSD_20240828
["ID","MTS","AMOUNT","RATE_DAILY","PERIOD"]
[336484098,1724873713980,1100.0,0.000106,3]
[336484099,1724873715284,230.69637297,0.000109,2]
[336484100,1724873716127,1700.0,0.000107,3]
[336484101,1724873718273,2300.0,0.000108,3]
[336484102,1724873720383,2800.0,0.000109,3]
[336484103,1724873750921,470.54471916,0.000109,2]
[336484104,1724873761413,694.44444,0.0001089,2]
[336484105,1724873886688,313.69647944,0.000109,2]
[336484106,1724873928989,6544.78253662,0.0001089,2]
[336484107,1724874006962,201.85932634,0.000109,2]
[336484108,1724874022258,209.1309863,0.000109,2]
[336484128,1724874109112,1133.79147,0.0001089,2]
[336484129,1724874125202,1359.73613844,0.000109,2]
[336484130,1724874165336,499.69,9.349e-05,2]
[336484131,1724874198329,2000.0,0.00010959,2]
[336484132,1724874198718,2000.0,0.00010959,2]
[336484133,1724874199254,2000.0,0.00010959,2]
[336484134,1724874199646,2000.0,0.00010959,2]
[336484135,1724874207527,500.0,0.00010959,2]
[336484136,1724874216347,500.0,0.00010911,2]
[336484137,1724874216486,500.0,0.00010912,2]
[336484138,1724874216926,500.0,0.00010912,2]
[336484139,1724874218950,9967.7323,0.000109,2]
[336484140,1724874287487,176.6269106,0.000109,2]
[336484155,1724874457200,578.7037,0.0001089,2]
[336484156,1724874560860,4274.82,0.0001,2]
[336484157,1724874575811,1223.76252456,0.000109,2]
[336484170,1724874631481,-300.0,0.00010998,2]
[336484171,1724874631492,-728.67827163,0.00010999,2]
[336484172,1724874631502,-1593.01254714,0.00010999,2]
[336484173,1724874631516,-5376.69263244,0.00010999,2]
[336484174,1724874631553,-380.03886704,0.00010999,2]
[336484175,1724874631564,-8458.18332674,0.00010999,2]
[336484176,1724874631657,-1316.83678172,0.00010999,2]
[336484177,1724874631674,-553.0,0.00010999,2]
[336484178,1724874631709,-530.14499983,0.00010999,2]
[336484182,1724874637590,-223.26959684,0.00010997,2]
[336484183,1724874637600,-7297.82040316,0.00010999,2]
[336484288,1724874640315,-203.07014251,0.00010999,2]
[336484289,1724874640325,-150.0,0.00010999,2]
[336484290,1724874640334,-146.40687399,0.00011,2]
[336484291,1724874640345,-504.21,0.00011,2]
[336484292,1724874640375,-244.38312601,0.00011,2]
[336484293,1724874640386,-1280.85935795,0.00011,2]
[336484294,1724874640395,-16715.9755163,0.00011,2]
[336484381,1724874643902,-823.78370028,0.00011,2]
[336484543,1724874645502,-8849.56618415,0.00011,2]
[336484546,1724874645516,-7622.55047678,0.00011,2]
[336484548,1724874645530,-3017.17189591,0.00011,2]
[336484552,1724874645556,-2318.42279138,0.00011,2]
[336484554,1724874645568,-21079.22809882,0.00011,2]
[336484559,1724874645611,-4970.41894437,0.00011,2]
[336484561,1724874645623,-333.99261004,0.00011,2]
[336484564,1724874645635,-5177.5175671,0.00011,2]
[336484566,1724874645646,-453.08776319,0.00011,2]
[336484568,1724874645657,-2210.0,0.00011,2]
[336484571,1724874645678,-470.22347517,0.00011,2]
[336484573,1724874645690,-723.71353901,0.00011,2]
[336484575,1724874645701,-193135.12879708,0.00011,2]
[336484577,1724874645712,-43108.08925,0.00011,2]
[336484580,1724874645724,-8571.89705668,0.00011,2]
[336484582,1724874645735,-1576.40621,0.00011,2]
[336484585,1724874645757,-1569.25968238,0.00011,2]
[336484587,1724874645770,-959.66047797,0.00011,2]
[336484591,1724874645801,-1533.09096458,0.00011,2]
[336484593,1724874645813,-20537.74473871,0.00011,2]
[336484596,1724874645825,-2015.57078776,0.00011,2]
[336484598,1724874645837,-813.63062493,0.00011,2]
[336484600,1724874645852,-606.89758154,0.00011,2]
[336484603,1724874645864,-379.89623438,0.00011,2]
[336485319,1724874653798,154.54854674,0.000109,2]
[336485713,1724874697027,157.10906012,0.000109,2]
[336485715,1724874770035,486.75,9.224e-05,2]
[336485716,1724874795465,500.0,0.00010959,2]
[336485717,1724874795884,500.0,0.00010959,2]
[336485718,1724874805310,944.82622,0.0001089,2]
[336485719,1724874807943,2000.0,0.00010959,2]
[336485720,1724874816502,500.0,0.00010959,2]
[336485721,1724874824781,500.0,0.00010912,2]
[336485722,1724874832093,363.72365928,0.000109,2]
[336485723,1724874890490,10882.3113,0.000109,2]
[336485724,1724874947119,154.54854672,0.000109,2]
[336485725,1724875021171,943.55,0.00010881,2]
[336485726,1724875024111,1069.3402,0.00010887,2]
[336485727,1724875024493,1267.82,0.00010876,2]
[336485728,1724875028087,1101.38627214,0.00010899,2]
[336485729,1724875093479,4064.0211,0.00010887,2]
[336485730,1724875095259,1852.42,0.00010956,2]
[336485731,1724875125022,15152.15,0.0001094,2]
[336485732,1724875153375,982.25308,0.0001089,2]
[336485733,1724875203973,3313.43,0.00010242,2]
[336485734,1724875221235,154.54854672,0.000109,2]
[336485735,1724875261013,1050.0,0.0001,2]
[336485736,1724875264449,462.41,8.289e-05,2]
[336485737,1724875264670,462.41,0.00010552,2]
[336485738,1724875273217,250.0,0.00010206,2]
[336485739,1724875320264,488214.1741,0.00010887,2]
[336485740,1724875367284,961.92,0.000102,2]
[336485741,1724875394456,500.0,0.00010959,2]
[336485742,1724875402320,2000.0,0.00010959,2]
[336485743,1724875410951,500.0,0.00010959,2]
[336485744,1724875417352,500.0,0.00010912,2]
[336485745,1724875479974,991.24764489,0.00010899,2]
[336485746,1724875485190,154.54854672,0.000109,2]
[336485747,1724875487258,178.44,0.000107,2]
[336485748,1724875501778,3209.8632,0.00010887,2]
[336485749,1724875502462,787.35519,0.0001089,2]
[336485750,1724875509992,633.91,0.00010175,2]
[336485751,1724875518171,150.0,9.888e-05,2]
[336485752,1724875531403,230.51,0.00010175,2]
[336485753,1724875560906,560.56,0.00010173,2]
[336485762,1724875647391,4156.95,0.00010257,2]
[336485764,1724875677621,184.27,0.00010959,2]
[336485765,1724875734358,154.54854672,0.000109,2]
[336485767,1724875814122,250.0,0.00010683,2]
[336485768,1724875815542,416.16,8.766e-05,2]
[336485769,1724875816774,175.10094526,0.00010895,2]
[336485806,1724875831730,-150.0,0.00010986,2]
[336485809,1724875831740,-300.0,0.00010986,2]
[336485811,1724875831749,-593.0,0.00010986,2]
[336485814,1724875831758,-1371.65594375,0.00010986,2]
[336485817,1724875831769,-739.69628748,0.00010986,2]
[336485819,1724875831782,-912.38802639,0.00010986,2]
[336485821,1724875831794,-270.43444238,0.00010986,2]
[336485823,1724875831803,-696.00019136,0.00010987,2]
[336485825,1724875831814,-192.99980864,0.00010987,2]
[336485827,1724875831823,-270.61891015,0.00010987,2]
[336485829,1724875831851,-4781.02268136,0.00010987,2]
[336485830,1724875831863,-182386.50200892,0.00010987,2]
[336485831,1724875831879,-544.0998858,0.00010987,2]
[336485832,1724875831891,-315.04,0.00010987,2]
[336485833,1724875832007,-266349.6817854,0.00010987,2]
[336485836,1724875832046,-925.07724057,0.00010987,2]
[336485837,1724875832056,-2595.45439401,0.00010987,2]
[336485838,1724875832067,-593.55351269,0.00010987,2]
[336485841,1724875837838,-213.22753938,0.00010984,2]
[336485842,1724875837848,-98.05556424,0.00010987,2]
[336485843,1724875837891,-779.94443576,0.00010987,2]
[336485844,1724875837901,-56574.86555963,0.00010987,2]
[336485845,1724875837913,-620.79838578,0.00010987,2]
[336485846,1724875837998,-649.025,0.00010987,2]
[336485847,1724875838052,-284903.46485716,0.00010987,2]
[336486004,1724875839690,-1129.10829927,0.00010987,2]
[336486012,1724875839739,-968.08777415,0.00010987,2]
[336486014,1724875839751,-5063.96244553,0.00010987,2]
[336486019,1724875839794,-727.40483639,0.00010987,2]
[336486022,1724875839806,-295.0,0.00010987,2]
[336486024,1724875839817,-817.86703771,0.00010987,2]
[336486033,1724875839900,-2074.6175,0.00010987,2]
[336486035,1724875839912,-139521.21534765,0.00010987,2]
[336486040,1724875839954,-140831.78781609,0.00010987,2]
[336486042,1724875839966,-2437.39358701,0.00010987,2]
[336486414,1724875843782,-796.0,0.00010987,2]
[336486416,1724875843791,-232086.66253916,0.00010987,2]
[336486418,1724875843803,-33954.92501585,0.00010987,2]
[336486420,1724875843812,-4144.0009947,0.00010995,2]
[336486422,1724875843821,-8935.2156092,0.00010995,2]
[336486423,1724875843830,-3243.6948115,0.00010995,2]
[336486425,1724875843839,-9681.1228823,0.00010995,2]
[336486427,1724875843848,-2358.6955758,0.00010995,2]
[336486429,1724875843857,-455.10386511,0.00010995,2]
[336486431,1724875843866,-213.22753938,0.00010997,2]
[336486432,1724875843877,-601.86712832,0.00010999,2]
[336486434,1724875843888,-856.8,0.00010999,2]
[336486437,1724875843897,-179.99,0.00010999,2]
[336486438,1724875843906,-1201.76,0.00010999,2]
[336486440,1724875843915,-3700.67,0.00011,2]
[336486441,1724875843925,-3708.31,0.00011,2]
[336486442,1724875843935,-623.43,0.00011,2]
[336486443,1724875843945,-2156.28,0.00011,2]
[336486444,1724875843954,-455.63,0.00011,2]
[336486445,1724875843963,-1016.41,0.00011,2]
[336486446,1724875843973,-499.99,0.00011,2]
[336486447,1724875843983,-351109.59211604,0.00011,2]
[336486448,1724875843992,-1000.0,0.00011,2]
[336486449,1724875844001,-101098.07727075,0.00011,2]
[336486452,1724875845775,-120884.00121197,0.00011,2]
[336486453,1724875845829,-1481.488045,0.00011,2]
[336486454,1724875845841,-7975.8411061,0.00011,2]
[336486455,1724875848783,-48321.85948847,0.00011,2]
[336486456,1724875852188,818.54424,0.0001089,2]
[336486457,1724875935571,892.12288041,0.000109,2]
[336486458,1724875972687,154.54854672,0.000109,2]
[336486459,1724875994687,500.0,0.00010959,2]
[336486460,1724876002663,2000.0,0.00010959,2]
[336486461,1724876010538,500.0,0.00010959,2]
[336486462,1724876016145,500.0,0.00010912,2]
[336486463,1724876016886,496.4605,0.000109,2]
[336486464,1724876035435,506.6185,0.000109,2]
[336486465,1724876119335,290.97892744,0.000109,2]
[336486466,1724876171267,-150.0,0.00010994,2]
[336486467,1724876171288,-300.0,0.00010994,2]
[336486468,1724876171526,-3954.4253138,0.00010995,2]
[336486469,1724876171548,-5595.5746862,0.00010995,2]
[336486470,1724876183130,1000.0,0.000109,2]
[336486471,1724876202348,656.12932,0.0001089,2]
[336486472,1724876212872,155.29394996,0.000109,2]
[336486473,1724876297816,412.5598,0.000109,2]
[336486474,1724876306981,18705.4386,0.000109,2]
[336486475,1724876324170,411.51,9.313e-05,2]
[336486476,1724876380048,1428.2992,0.000109,2]
[336486477,1724876387140,830.50234449,0.000109,2]
[336486478,1724876395889,155.84,0.00010959,2]
[336486479,1724876437951,155.29394994,0.000109,2]
[336486480,1724876479370,646.591,0.000109,2]
[336486481,1724876482605,208.14125894,0.000109,2]
[336486482,1724876534811,42177.6088,0.000109,2]
[336486483,1724876550609,2874.64794,0.0001089,2]
[336486484,1724876595010,500.0,0.00010959,2]
[336486485,1724876603354,500.0,0.00010959,2]
[336486486,1724876609318,500.0,0.00010912,2]
[336486487,1724876619729,217.55383496,0.00010869,2]
[336486488,1724876653954,155.29394994,0.000109,2]
[336487569,1724876816334,390.93,9.144e-05,2]
[336487574,1724876842578,747.45211005,0.000109,2]
[336487601,1724876898673,546.77443,0.0001089,2]
[336487602,1724876919602,657.34091766,0.0002,60]
[336487604,1724876978122,446.0,0.000109,2]
[336487606,1724876995037,150.0,0.00024,120]
[336487630,1724877031880,-150.81,0.0001099,2]
[336487632,1724877031890,-240.52638252,0.00010997,2]
[336487634,1724877031898,-300.0,0.00010998,2]
[336487637,1724877031908,-150.0,0.00010998,2]
[336487639,1724877031917,-1392.52205186,0.00010999,2]
[336487640,1724877031927,-500.0,0.00010999,2]
[336487641,1724877031937,-500.0,0.00010999,2]
[336487642,1724877031946,-500.0,0.00010999,2]
[336487643,1724877031955,-641.60373469,0.00010999,2]
[336487644,1724877031964,-500.0,0.00010999,2]
[336487645,1724877031973,-179.44363863,0.00010999,2]
[336487646,1724877031995,-320.55636137,0.00010999,2]
[336487647,1724877032005,-500.0,0.00010999,2]
[336487648,1724877032013,-608.43022832,0.00010999,2]
[336487649,1724877032023,-388.64101877,0.00010999,2]
[336487650,1724877032032,-500.0,0.00010999,2]
[336487651,1724877032042,-500.0,0.00010999,2]
[336487652,1724877032051,-500.0,0.00010999,2]
[336487653,1724877032060,-500.0,0.00010999,2]
[336487654,1724877032069,-500.0,0.00010999,2]
[336487655,1724877032078,-250.0,0.00010999,2]
[336487656,1724877032089,-500.0,0.00010999,2]
[336487657,1724877032098,-196.64648908,0.00010999,2]
[336487658,1724877032108,-420.6543901,0.00010999,2]
[336487659,1724877032117,-666.0,0.00011,2]
[336487660,1724877032126,-2896.34326308,0.00011,2]
[336487661,1724877032175,-3899.68620111,0.00011,2]
[336487662,1724877032187,-1891.96129736,0.00011,2]
[336487663,1724877032198,-10523.09199173,0.00011,2]
[336487664,1724877032217,-425.57342306,0.00011,2]
[336487666,1724877032228,-530.84773883,0.00011,2]
[336487681,1724877038001,-6335.09103087,0.00011,2]
[336487682,1724877038011,-779.0,0.00011,2]
[336487683,1724877038021,-65231.79440725,0.00011,2]
[336487684,1724877038034,-818.775,0.00011,2]
[336487685,1724877038116,-478.31959918,0.00011,2]
[336487686,1724877038127,-353.64,0.00011,2]
[336487687,1724877038283,-5915.05623712,0.00011,2]
[336487688,1724877038295,-644.68559983,0.00011,2]
[336487689,1724877038307,-1016.61,0.00011,2]
[336487690,1724877038318,-1715.6453042,0.00011,2]
[336487692,1724877038346,-395.52138118,0.00011,2]
[336487700,1724877039919,-300.0495264,0.00011,2]
[336487701,1724877039930,-8883.54663378,0.00011,2]
[336487702,1724877040020,-7144.41105157,0.00011,2]
[336487703,1724877040032,-70210.45250724,0.00011,2]
[336487704,1724877040044,-2512.40792866,0.00011,2]
[336487705,1724877040067,-69800.89019741,0.00011,2]
[336487706,1724877040078,-2439.14814662,0.00011,2]
[336487707,1724877040090,-552.33090042,0.00011,2]
[336487708,1724877040101,-474.621015,0.00011,2]
[336487709,1724877040113,-1121.4703394,0.00011,2]
[336487710,1724877040124,-8088.95586128,0.00011,2]
[336487711,1724877040136,-718.6854467,0.00011,2]
[336487712,1724877040150,-378.335,0.00011,2]
[336487713,1724877040162,-192955.07764394,0.00011,2]
[336487714,1724877040191,-3254357.66636478,0.00011,2]
[336487715,1724877040202,-134311.57088101,0.00011,2]
[336487716,1724877040231,-1862.3157515,0.00011,2]
[336487717,1724877040244,-348.33,0.00011,2]
[336487727,1724877040369,-1781.44982976,0.00011,2]
[336487729,1724877040380,-5227.0184741,0.00011,2]
[336487731,1724877040391,-429.15446819,0.00011,2]
[336487858,1724877044312,-7654.86113804,0.00011,2]
[336487861,1724877044327,-3529.11975385,0.00011,2]
[336487863,1724877044338,-3397.76989014,0.00011,2]
[336487865,1724877044350,-1269.05719409,0.00011,2]
[336487869,1724877044375,-500.0,0.00011,2]
[336487871,1724877044386,-22850.13228136,0.00011,2]
[336487873,1724877044398,-26275.86125951,0.00011,2]
[336487967,1724877045315,-92536.7894095,0.00011,2]
[336487969,1724877045325,-7636.2278024,0.00011,2]
[336487972,1724877045344,-3011.29539032,0.00011,2]
[336487974,1724877045356,-2971.4261541,0.00011,2]
[336487976,1724877045367,-511.74477419,0.00011,2]
[336487978,1724877045378,-4783.16,0.00011,2]
[336487981,1724877045393,-1795.66259684,0.00011,2]
[336487983,1724877045405,-36597.54571064,0.00011,2]
[336487985,1724877045417,-4045.835814,0.00011,2]
[336487987,1724877045428,-298.72,0.00011,2]
[336487989,1724877045439,-469.133491,0.00011,2]
[336487991,1724877045450,-1045.62297708,0.00011,2]
[336487993,1724877045462,-3563.9999998,0.00011,2]
[336487998,1724877045501,-383.53475,0.00011,2]
[336488000,1724877045513,-17630.64052017,0.00011,2]
[336488002,1724877045524,-2829.58704795,0.00011,2]
[336488004,1724877045536,-18847.96200157,0.00011,2]
[336488006,1724877045547,-1124.49542968,0.00011,2]
[336488008,1724877045560,-9245.25,0.00011,2]
[336488010,1724877045571,-6020.00259753,0.00011,2]
[336488019,1724877045654,-1160.54511197,0.00011,2]
[336488067,1724877046261,-407.37144464,0.00011,2]
[336488070,1724877046286,-96871.0195768,0.00011,2]
[336488075,1724877046328,-1269.51983804,0.00011,2]
[336488078,1724877046349,-1082.61991605,0.00011,2]
[336488081,1724877046372,-2026.77504163,0.00011,2]
[336488084,1724877046393,-10019.09632223,0.00011,2]
[336488087,1724877046411,-1101.17387815,0.00011,2]
[336488090,1724877046431,-629.89200498,0.00011,2]
[336488094,1724877046462,-1131.90187909,0.00011,2]
[336488099,1724877046500,-1144.25759762,0.00011,2]
[336488102,1724877046519,-264.37005527,0.00011,2]
[336488105,1724877046537,-245576.45777078,0.00011,2]
[336488107,1724877046551,-1000.0,0.00011,2]
[336488110,1724877046566,-1000.0,0.00011,2]
[336488112,1724877046581,-1000.0,0.00011,2]
[336488115,1724877046596,-1000.0,0.00011,2]
[336488117,1724877046611,-1000.0,0.00011,2]
[336488120,1724877046625,-1000.0,0.00011,2]
[336488122,1724877046641,-1000.0,0.00011,2]
[336488125,1724877046657,-1000.0,0.00011,2]
[336488127,1724877046672,-1000.0,0.00011,2]
[336488130,1724877046688,-1000.0,0.00011,2]
[336488132,1724877046703,-1000.0,0.00011,2]
[336488135,1724877046718,-1000.0,0.00011,2]
[336488137,1724877046734,-155.10125735,0.00011,2]
[336488140,1724877046750,-151.0,0.00011,2]
[336488142,1724877046766,-151.0,0.00011,2]
[336488145,1724877046782,-161.083639,0.00011,2]
[336488147,1724877046797,-151.0,0.00011,2]
[336488150,1724877046812,-151.0,0.00011,2]
[336488153,1724877046828,-163.806495,0.00011,2]
[336488155,1724877046842,-163.806495,0.00011,2]
[336488158,1724877046857,-151.0,0.00011,2]
[336488160,1724877046874,-151.0,0.00011,2]
[336488163,1724877046889,-151.0,0.00011,2]
[336488166,1724877046906,-151.0,0.00011,2]
[336488168,1724877046921,-278.764079,0.00011,2]
[336488171,1724877046936,-278.764079,0.00011,2]
[336488173,1724877046951,-309.507368,0.00011,2]
[336488176,1724877046967,-309.507368,0.00011,2]
[336488178,1724877046983,-2000.0,0.00011,2]
[336488180,1724877046999,-200.0,0.00011,2]
[336488182,1724877047014,-2000.0,0.00011,2]
[336488184,1724877047029,-200.0,0.00011,2]
[336488187,1724877047046,-1300.698,0.00011,2]
[336488189,1724877047062,-336.83803949,0.00011,2]
[336488192,1724877047076,-200.0,0.00011,2]
[336488194,1724877047092,-2395.53995,0.00011,2]
[336488197,1724877047107,-1819.0,0.00011,2]
[336488199,1724877047123,-468.1948618,0.00011032,2]
[336488202,1724877047139,-5796.23226313,0.0001104,2]
[336488205,1724877047158,-389.71569304,0.0001104,2]
[336488208,1724877047176,-332.78,0.0001104,2]
[336488210,1724877047194,-1141.91941093,0.0001104,2]
[336488213,1724877047210,-1852.9076464,0.00011048,2]
[336488216,1724877047225,-2162.88616375,0.00011048,2]
[336488218,1724877047246,-1277.79862584,0.00011048,2]
[336488221,1724877047267,-659.22994131,0.00011048,2]
[336488223,1724877047283,-924.70701014,0.00011055,2]
[336488227,1724877047309,-1130.07324647,0.00011055,2]
[336488229,1724877047327,-500.0,0.00011055,2]
[336489236,1724877063221,150.0,0.00022,60]
[336489237,1724877195716,-2000.0,0.000244,120]
[336489238,1724877195741,-1700.0,0.000245,120]
[336489239,1724877196033,-1000.0,0.00025,60]
[336489240,1724877196058,-1500.0,0.00025,120]
[336489241,1724877196081,-150.0,0.00025,60]
[336489242,1724877196105,-630.42158623,0.00025,120]
[336489243,1724877196133,-1006.40765108,0.00025,60]
[336489244,1724877196157,-240.84268562,0.00025,120]
[336489245,1724877196181,-696.0,0.00025,120]
[336489246,1724877196230,-2198.52983548,0.0002509,120]
[336489247,1724877196256,-169.888673,0.00025846,120]
[336489248,1724877196283,-150.0,0.00026,120]
[336489249,1724877196314,-200.0,0.00026196,120]
[336489250,1724877196340,-500.0,0.00026354,120]
[336489251,1724877196372,-500.0,0.00026863,120]
[336489252,1724877196396,-1696.48953871,0.000269,120]
[336489253,1724877196420,-800.0,0.00026986,120]
[336489254,1724877196445,-800.0,0.00026986,120]
[336489255,1724877196468,-800.0,0.00026986,120]
[336489256,1724877196495,-400.0,0.00026986,120]
[336489257,1724877196520,-800.0,0.00026986,120]
[336489258,1724877196547,-1871.90942389,0.00027,120]
[336489259,1724877196571,-2420.31890815,0.00027,120]
[336489260,1724877196595,-2014.17762795,0.00027,120]
[336489261,1724877196624,-2600.4844465,0.00027,120]
[336489262,1724877196649,-1003.55059272,0.00027,120]
[336489263,1724877196672,-665.89322344,0.00027,120]
[336489264,1724877196695,-2650.23079705,0.00027,120]
[336489265,1724877196718,-2000.0,0.00027,120]
[336489266,1724877196743,-800.0,0.00027,120]
[336489267,1724877196766,-645.86,0.00027,120]
[336489268,1724877196790,-2000.0,0.00027,120]
[336489269,1724877196813,-2000.0,0.00027,120]
[336489270,1724877196837,-239.29956844,0.0002736,120]
[336489271,1724877196863,-500.0,0.00027371,120]
[336489272,1724877196886,-249.55574567,0.00027397,60]
[336489273,1724877196911,-150.0,0.00027418,120]
[336489274,1724877196935,-150.0,0.00027482,120]
[336489275,1724877196959,-150.0,0.00027592,120]
[336489276,1724877196983,-150.0,0.00027616,120]
[336489277,1724877197009,-2000.0,0.00028,120]
[336489278,1724877197034,-150.0,0.00028,120]
[336489279,1724877197058,-150.0,0.00028127,120]
[336489280,1724877197082,-150.0,0.00028528,120]
[336489281,1724877197106,-2215.62259385,0.00028767,120]
[336489282,1724877197151,-150.0,0.00029036,120]
[336489283,1724877197180,-500.0,0.00029238,120]
[336489284,1724877197203,-150.0,0.00029377,120]
[336489285,1724877197227,-150.0,0.0002939,120]
[336489286,1724877197251,-500.0,0.00029392,120]
[336489287,1724877197275,-800.0,0.000295,120]
[336489288,1724877197299,-200.0,0.00029629,120]
[336489289,1724877197328,-150.0,0.00029776,120]
[336489290,1724877197354,-150.0,0.00029957,120]
[336489291,1724877197382,-455.84108589,0.0003,120]
[336489292,1724877197407,-151.0,0.0003,120]
[336489293,1724877197430,-151.0,0.0003,120]
[336489294,1724877197453,-2275.41657669,0.0003,90]
[336489295,1724877197479,-2681.86389294,0.0003,120]
[336489296,1724877197506,-1960.01815663,0.0003,120]
[336489297,1724877197533,-2070.0,0.0003,120]
[336489298,1724877197559,-500.0,0.0003,120]
[336489299,1724877197581,-150.0,0.0003,120]
[336489300,1724877197605,-200.0,0.00030137,60]
[336489301,1724877197630,-150.0,0.00030278,120]
[336489302,1724877197655,-150.0,0.00030474,120]
[336489303,1724877197682,-150.0,0.00030552,120]
[336489304,1724877197708,-150.0,0.00030739,120]
[336489305,1724877197735,-150.0,0.00030803,120]
[336489306,1724877197761,-150.0,0.0003093,120]
[336489307,1724877197784,-151.0,0.00030959,120]
[336489308,1724877197809,-150.0,0.00031016,120]
[336489309,1724877197833,-500.0,0.00031105,120]
[336489310,1724877197858,-150.0,0.00031269,120]
[336489311,1724877197885,-150.0,0.0003132,120]
[336489312,1724877197911,-150.0,0.0003133,120]
[336489313,1724877197938,-150.0,0.00031472,120]
[336489314,1724877197964,-150.0,0.00031759,120]
[336489315,1724877197991,-150.0,0.00031801,120]
[336489316,1724877198018,-151.0,0.00031918,120]
[336489317,1724877198044,-800.0,0.00032,120]
[336489318,1724877198070,-2000.0,0.00032,120]
[336489319,1724877198095,-150.0,0.00032,120]
[336489320,1724877198120,-150.0,0.00032072,120]
[336489321,1724877198146,-150.0,0.00032504,120]
[336489322,1724877198170,-150.0,0.00032562,120]
[336489323,1724877198195,-2233.5071427,0.000328,90]
[336489324,1724877198220,-3000.0,0.00032876,120]
[336489325,1724877198246,-2633.24,0.00032876,120]
[336489326,1724877198271,-2633.24,0.00032876,120]
[336489327,1724877198295,-2633.24,0.00032876,120]
[336489328,1724877198324,-2633.24,0.00032876,120]
[336489329,1724877198350,-2633.24,0.00032876,120]
[336489330,1724877198375,-2633.24,0.00032876,120]
[336489331,1724877198401,-2633.24,0.00032876,120]
[336489332,1724877198642,-2633.24,0.00032876,120]
[336489333,1724877198668,-2633.24,0.00032876,120]
[336489334,1724877198694,-2633.24,0.00032876,120]
[336489335,1724877198721,-2633.24,0.00032876,120]
[336489336,1724877198747,-2633.24,0.00032876,120]
[336489337,1724877198771,-2633.24,0.00032876,120]
[336489338,1724877198797,-2633.24,0.00032876,120]
[336489339,1724877198823,-2633.24,0.00032876,120]
[336489340,1724877198849,-2633.24,0.00032876,120]
[336489341,1724877198878,-2633.24,0.00032876,120]
[336489342,1724877198902,-2633.24,0.00032876,120]
[336489343,1724877198928,-2633.24,0.00032876,120]
[336489344,1724877198954,-2633.24,0.00032876,120]
[336489345,1724877198979,-2633.24,0.00032876,120]
[336489346,1724877199004,-2633.24,0.00032876,120]
[336489347,1724877199030,-2633.24,0.00032876,120]
[336489348,1724877199055,-2633.33522721,0.00032876,120]
[336489349,1724877199080,-200.0,0.00032877,60]
[336489350,1724877199105,-151.0,0.00032877,120]
[336489351,1724877199132,-150.0,0.00032879,120]
[336489352,1724877199159,-836.75862632,0.00033,120]
[336489353,1724877199183,-160.81034201,0.00033,120]
[336489354,1724877199208,-3142.82,0.00033151,120]
[336489355,1724877199233,-8081.16,0.00033151,120]
[336489356,1724877199258,-150.0,0.00033229,120]
[336489357,1724877199285,-150.0,0.0003362,120]
[336489358,1724877199318,-3000.0,0.00033698,120]
[336489359,1724877199345,-151.0,0.00033836,120]
[336489360,1724877199372,-150.0,0.00033875,120]
[336489361,1724877199397,-150.0,0.00033881,120]
[336489362,1724877199422,-150.0,0.00033911,120]
[336489363,1724877199447,-150.0,0.00033956,120]
[336489364,1724877199471,-2711.66989691,0.00034,120]